Workbook

Sheet 국지도, 지방도(5)
A1: 2025년 도로 교통량 조사 결과 집계표(지방도 및 국가지원지방도)
A2: 노선별 | C2: 2025년 교통량 조사결과 (차종별 6시간) | AC2: 24시간 총조사결과
C3: 시간 | D3: 계 | E3: 1종 (승용) | G3: 2종 (버스) | I3: 3종 (소형트럭) | K3: 4종 (소형트럭) | M3: 5종 (중형트럭) | O3: 6종 (중형트럭) | Q3: 7종 (중형트럭) | S3: 8종 (대형트럭) | U3: 9종 (대형트럭) | W3: 10종 (대형트럭) | Y3: 11종 (대형트럭) | AA3: 12종 (대형트럭) | AC3: 시간 | AD3: 2024년 | AE3: 2025년 | AF3: 증감 | AG3: 증감율
E4: 상행 | F4: 하행 | G4: 상행 | H4: 하행 | I4: 상행 | J4: 하행 | K4: 상행 | L4: 하행 | M4: 상행 | N4: 하행 | O4: 상행 | P4: 하행 | Q4: 상행 | R4: 하행 | S4: 상행 | T4: 하행 | U4: 상행 | V4: 하행 | W4: 상행 | X4: 하행 | Y4: 상행 | Z4: 하행 | AA4: 상행 | AB4: 하행
A5: 합계 (5지점) | C5: 합계 | D5: =SUM(D8,D11,D14,D17,D20) -> 8,914 | E5: 2,797 | F5: 2,573 | G5: 411 | H5: 404 | I5: 784 | J5: 912 | K5: 49 | L5: 52 | M5: 266 | N5: 251 | O5: 80 | P5: 83 | Q5: 46 | R5: 64 | S5: 12 | T5: 13 | U5: 11 | V5: 6 | W5: 37 | X5: 23 | Y5: 17 | Z5: 22 | AA5: 1 | AB5: 0 | AC5: 합계 | AD5: =SUM(AD6:AD7) -> 22,437 | AE5: =SUM(AE6:AE7) -> 21,783 | AF5: =AE5-AD5 -> -654 | AG5: =AF5/AD5 -> -2.91%
C6: 주간 | D6: 4,064 | E6: =SUM(E9,E12,E15,E18,E21) -> 1,062 | F6: 1,260 | G6: 183 | H6: 155 | I6: 385 | J6: 447 | K6: 25 | L6: 23 | M6: 128 | N6: 134 | O6: 51 | P6: 60 | Q6: 29 | R6: 34 | S6: 8 | T6: 6 | U6: 6 | V6: 3 | W6: 24 | X6: 16 | Y6: 10 | Z6: 14 | AA6: 1 | AB6: 0 | AC6: 주간 (07~19) | AD6: =AD9+AD12+AD15+AD18+AD21 -> 18,471 | AE6: =AE9+AE12+AE15+AE18+AE21 -> 16,629 | AF6: =AE6-AD6 -> -1,842 | AG6: =AF6/AD6 -> -9.97%
C7: 야간 | D7: 4,850 | E7: 1,735 | F7: 1,313 | G7: 228 | H7: 249 | I7: 399 | J7: 465 | K7: 24 | L7: 29 | M7: 138 | N7: 117 | O7: 29 | P7: 23 | Q7: 17 | R7: 30 | S7: 4 | T7: 7 | U7: 5 | V7: 3 | W7: 13 | X7: 7 | Y7: 7 | Z7: 8 | AA7: 0 | AB7: 0 | AC7: 야간 (19~07) | AD7: =AD10+AD13+AD16+AD19+AD22 -> 3,966 | AE7: =AE10+AE13+AE16+AE19+AE22 -> 5,154 | AF7: 1,188 | AG7: =AF7/AD7 -> 29.95%
A8: 22-01 (나진<=>여수) 콘파레펜션 앞 | C8: 소계 | D8: =SUM(E8:AB8) -> 2,375 | E8: =SUM(E9:E10) -> 579 | F8: 637 | G8: 216 | H8: 184 | I8: 170 | J8: 211 | K8: 19 | L8: 17 | M8: 35 | N8: 23 | O8: 39 | P8: 32 | Q8: 40 | R8: 40 | S8: 11 | T8: 10 | U8: 11 | V8: 5 | W8: 37 | X8: 23 | Y8: 17 | Z8: 19 | AA8: 0 | AB8: 0 | AC8: 소계 | AD8: =SUM(AD9:AD10) -> 7,257 | AE8: =SUM(AE9:AE10) -> 6,949 | AF8: -308 | AG8: =AF8/AD8 -> -4%
C9: 08~11 | D9: 1,067 | E9: 257 | F9: 265 | G9: 95 | H9: 72 | I9: 86 | J9: 79 | K9: 10 | L9: 9 | M9: 18 | N9: 12 | O9: 21 | P9: 17 | Q9: 25 | R9: 19 | S9: 7 | T9: 5 | U9: 6 | V9: 2 | W9: 24 | X9: 16 | Y9: 10 | Z9: 12 | AA9: 0 | AB9: 0 | AC9: 주간 (07~19) | AD9: 6,010 | AE9: 4,366 | AF9: -1,644 | AG9: =AF9/AD9 -> -27%
C10: 15~18 | D10: 1,308 | E10: 322 | F10: 372 | G10: 121 | H10: 112 | I10: 84 | J10: 132 | K10: 9 | L10: 8 | M10: 17 | N10: 11 | O10: 18 | P10: 15 | Q10: 15 | R10: 21 | S10: 4 | T10: 5 | U10: 5 | V10: 3 | W10: 13 | X10: 7 | Y10: 7 | Z10: 7 | AA10: 0 | AB10: 0 | AC10: 야간 (19~07) | AD10: 1,247 | AE10: 2,583 | AF10: 1,336 | AG10: 107%
A11: 22-02 (소라<=>율촌) 소라면사무소 앞 | C11: 소계 | D11: 4,108 | E11: =SUM(E12:E13) -> 1,273 | F11: 1,136 | G11: 98 | H11: 117 | I11: 428 | J11: 505 | K11: 24 | L11: 33 | M11: 229 | N11: 225 | O11: 5 | P11: 4 | Q11: 6 | R11: 24 | S11: 1 | T11: 0 | U11: 0 | V11: 0 | W11: 0 | X11: 0 | Y11: 0 | Z11: 0 | AA11: 0 | AB11: 0 | AC11: 소계 | AD11: =SUM(AD12:AD13) -> 8,402 | AE11: =SUM(AE12:AE13) -> 9,122 | AF11: 720 | AG11: =AF11/AD11 -> 9%
C12: 08~11 | D12: =SUM(E12:AB12) -> 1,908 | E12: 576 | F12: 524 | G12: 51 | H12: 49 | I12: 187 | J12: 248 | K12: 9 | L12: 12 | M12: 108 | N12: 119 | O12: 2 | P12: 3 | Q12: 4 | R12: 15 | S12: 1 | T12: 0 | U12: 0 | V12: 0 | W12: 0 | X12: 0 | Y12: 0 | Z12: 0 | AA12: 0 | AB12: 0 | AC12: 주간 (07~19) | AD12: 7,125 | AE12: 7,637 | AF12: 512 | AG12: =AF12/AD12 -> 7%
C13: 15~18 | D13: 2,200 | E13: 697 | F13: 612 | G13: 47 | H13: 68 | I13: 241 | J13: 257 | K13: 15 | L13: 21 | M13: 121 | N13: 106 | O13: 3 | P13: 1 | Q13: 2 | R13: 9 | S13: 0 | T13: 0 | U13: 0 | V13: 0 | W13: 0 | X13: 0 | Y13: 0 | Z13: 0 | AA13: 0 | AB13: 0 | AC13: 야간 (19~07) | AD13: 1,277 | AE13: 1,485 | AF13: 208 | AG13: =AF13/AD13 -> 16%
A14: 22-03 (장수<=>여수) 안포마을회관 앞 | C14: 소계 | D14: =SUM(E14:AB14) -> 1,959 | E14: =SUM(E15:E16) -> 858 | F14: =SUM(F15:F16) -> 711 | G14: 25 | H14: 16 | I14: 116 | J14: 135 | K14: 1 | L14: 2 | M14: 2 | N14: 2 | O14: 36 | P14: 47 | Q14: 0 | R14: 0 | S14: 0 | T14: 3 | U14: 0 | V14: 1 | W14: 0 | X14: 0 | Y14: 0 | Z14: 3 | AA14: 1 | AB14: 0 | AC14: 소계 | AD14: =SUM(AD15:AD16) -> 5,717 | AE14: =SUM(AE15:AE16) -> 4,725 | AF14: -992 | AG14: -17%
C15: 08~11 | D15: 863 | E15: 188 | F15: 430 | G15: 13 | H15: 6 | I15: 65 | J15: 81 | K15: 1 | L15: 2 | M15: 2 | N15: 2 | O15: 28 | P15: 40 | Q15: 0 | R15: 0 | S15: 0 | T15: 1 | U15: 0 | V15: 1 | W15: 0 | X15: 0 | Y15: 0 | Z15: 2 | AA15: 1 | AB15: 0 | AC15: 주간 (07~19) | AD15: 4,479 | AE15: 3,772 | AF15: -707 | AG15: -16%
C16: 15~18 | D16: 1,096 | E16: 670 | F16: 281 | G16: 12 | H16: 10 | I16: 51 | J16: 54 | K16: 0 | L16: 0 | M16: 0 | N16: 0 | O16: 8 | P16: 7 | Q16: 0 | R16: 0 | S16: 0 | T16: 2 | U16: 0 | V16: 0 | W16: 0 | X16: 0 | Y16: 0 | Z16: 1 | AA16: 0 | AB16: 0 | AC16: 야간 (19~07) | AD16: 1,238 | AE16: 953 | AF16: -285 | AG16: -23%
A17: 863-01 (일반77<=>서촌) 이목마을승강장 | C17: 소계 | D17: 221 | E17: =SUM(E18:E19) -> 42 | F17: =SUM(F18:F19) -> 49 | G17: 38 | H17: 44 | I17: 23 | J17: 19 | K17: 5 | L17: 0 | M17: 0 | N17: 1 | O17: 0 | P17: 0 | Q17: 0 | R17: 0 | S17: 0 | T17: 0 | U17: 0 | V17: 0 | W17: 0 | X17: 0 | Y17: 0 | Z17: 0 | AA17: 0 | AB17: 0 | AC17: 소계 | AD17: =SUM(AD18:AD19) -> 365 | AE17: =SUM(AE18:AE19) -> 422 | AF17: 57 | AG17: 16%
C18: 08~11 | D18: 112 | E18: 20 | F18: 25 | G18: 10 | H18: 9 | I18: 23 | J18: 19 | K18: 5 | L18: 0 | M18: 0 | N18: 1 | O18: 0 | P18: 0 | Q18: 0 | R18: 0 | S18: 0 | T18: 0 | U18: 0 | V18: 0 | W18: 0 | X18: 0 | Y18: 0 | Z18: 0 | AA18: 0 | AB18: 0 | AC18: 주간 (07~19) | AD18: 299 | AE18: 371 | AF18: 72 | AG18: 24%
C19: 15~18 | D19: 109 | E19: 22 | F19: 24 | G19: 28 | H19: 35 | I19: 0 | J19: 0 | K19: 0 | L19: 0 | M19: 0 | N19: 0 | O19: 0 | P19: 0 | Q19: 0 | R19: 0 | S19: 0 | T19: 0 | U19: 0 | V19: 0 | W19: 0 | X19: 0 | Y19: 0 | Z19: 0 | AA19: 0 | AB19: 0 | AC19: 야간 (19~07) | AD19: 66 | AE19: 51 | AF19: -15 | AG19: -23%
A20: 863-04 (소라<=>서촌) 대옥마을승강장 | C20: 소계 | D20: 251 | E20: =SUM(E21:E22) -> 45 | F20: =SUM(F21:F22) -> 40 | G20: 34 | H20: 43 | I20: 47 | J20: 42 | K20: 0 | L20: 0 | M20: 0 | N20: 0 | O20: 0 | P20: 0 | Q20: 0 | R20: 0 | S20: 0 | T20: 0 | U20: 0 | V20: 0 | W20: 0 | X20: 0 | Y20: 0 | Z20: 0 | AA20: 0 | AB20: 0 | AC20: 소계 | AD20: =SUM(AD21:AD22) -> 696 | AE20: =SUM(AE21:AE22) -> 565 | AF20: -131 | AG20: -19%
C21: 08~11 | D21: 114 | E21: 21 | F21: 16 | G21: 14 | H21: 19 | I21: 24 | J21: 20 | K21: 0 | L21: 0 | M21: 0 | N21: 0 | O21: 0 | P21: 0 | Q21: 0 | R21: 0 | S21: 0 | T21: 0 | U21: 0 | V21: 0 | W21: 0 | X21: 0 | Y21: 0 | Z21: 0 | AA21: 0 | AB21: 0 | AC21: 주간 (07~19) | AD21: 558 | AE21: 483 | AF21: -75 | AG21: -13%
C22: 15~18 | D22: 137 | E22: 24 | F22: 24 | G22: 20 | H22: 24 | I22: 23 | J22: 22 | K22: 0 | L22: 0 | M22: 0 | N22: 0 | O22: 0 | P22: 0 | Q22: 0 | R22: 0 | S22: 0 | T22: 0 | U22: 0 | V22: 0 | W22: 0 | X22: 0 | Y22: 0 | Z22: 0 | AA22: 0 | AB22: 0 | AC22: 야간 (19~07) | AD22: 138 | AE22: 82 | AF22: -56 | AG22: -41%
Z28: `

Sheet 시도집계표(18)
A1: 2025년 도로 교통량 조사 결과 집계표(시도)
A2: 노선별 | C2: 2025년 교통량 조사결과 (차종별 6시간) | AC2: 24시간 총조사결과
C3: 시간 | D3: 계 | E3: 1종 (승용) | G3: 2종 (버스) | I3: 3종 (소형트럭) | K3: 4종 (소형트럭) | M3: 5종 (중형트럭) | O3: 6종 (중형트럭) | Q3: 7종 (중형트럭) | S3: 8종 (대형트럭) | U3: 9종 (대형트럭) | W3: 10종 (대형트럭) | Y3: 11종 (대형트럭) | AA3: 12종 (대형트럭) | AC3: 시간 | AD3: 2024년 | AE3: 2025년 | AF3: 증감 | AG3: 증감율
E4: 상행 | F4: 하행 | G4: 상행 | H4: 하행 | I4: 상행 | J4: 하행 | K4: 상행 | L4: 하행 | M4: 상행 | N4: 하행 | O4: 상행 | P4: 하행 | Q4: 상행 | R4: 하행 | S4: 상행 | T4: 하행 | U4: 상행 | V4: 하행 | W4: 상행 | X4: 하행 | Y4: 상행 | Z4: 하행 | AA4: 상행 | AB4: 하행
A5: 합 계 (18지점) | C5: 합계 | D5: =SUM(D6:D7) -> 15,251 | E5: =SUM(E6:E7) -> 5,268 | F5: =SUM(F6:F7) -> 5,056 | G5: 277 | H5: 279 | I5: 1,733 | J5: 1,732 | K5: 197 | L5: 129 | M5: 112 | N5: 85 | O5: 156 | P5: 131 | Q5: 9 | R5: 7 | S5: 18 | T5: 9 | U5: 5 | V5: 6 | W5: 21 | X5: 10 | Y5: 3 | Z5: 3 | AA5: 3 | AB5: 2 | AC5: 합계 | AD5: =SUM(AD6:AD7) -> 34,115 | AE5: =SUM(AE6:AE7) -> 33,024 | AF5: =AE5-AD5 -> -1,091 | AG5: =AF5/AD5 -> -3.20%
C6: 주간 | D6: =SUM(E6:AB6) -> 8,250 | E6: =SUM(E9,E12,E15,E18,E21,E24,E27,E30,E33,E36,E39,E42,E45,E48,E51,E54,E57,E60) -> 2,792 | F6: =SUM(F9,F12,F15,F18,F21,F24,F27,F30,F33,F36,F39,F42,F45,F48,F51,F54,F57,F60) -> 2,689 | G6: 148 | H6: 144 | I6: 976 | J6: 888 | K6: 133 | L6: 87 | M6: 75 | N6: =SUM(N9,N12,N15,N18,N21,N24,N27,N30,N33,N36,N39,N42,N45,N48,N51,N54,N57,N60) -> 53 | O6: 112 | P6: 89 | Q6: 6 | R6: 5 | S6: 16 | T6: 8 | U6: 1 | V6: 3 | W6: 16 | X6: 7 | Y6: 1 | Z6: 0 | AA6: 1 | AB6: 0 | AC6: 주간 07~19 | AD6: =SUM(AD9,AD12,AD15,AD18,AD21,AD24,AD27,AD30,AD33,AD36,AD39,AD42,AD45,AD48,AD51,AD54,AD57,AD60) -> 28,046 | AE6: =SUM(AE9,AE12,AE15,AE18,AE21,AE24,AE27,AE30,AE33,AE36,AEB39,AE42,AE45,AE48,AE51,AE54,AE57,AE60,AE39) -> 26,767 | AF6: =AE6-AD6 -> -1,279 | AG6: =AF6/AD6 -> -5%
C7: 야간 | D7: =SUM(E7:AB7) -> 7,001 | E7: =SUM(E10,E13,E16,E19,E22,E25,E28,E31,E34,E37,E40,E43,E46,E49,E52,E55,E58,E61) -> 2,476 | F7: =SUM(F10,F13,F16,F19,F22,F25,F28,F31,F34,F37,F40,F43,F46,F49,F52,F55,F58,F61) -> 2,367 | G7: 129 | H7: 135 | I7: 757 | J7: 844 | K7: 64 | L7: 42 | M7: 37 | N7: =SUM(N10,N13,N16,N19,N22,N25,N28,N31,N34,N37,N40,N43,N46,N49,N52,N55,N58,N61) -> 32 | O7: 44 | P7: 42 | Q7: 3 | R7: 2 | S7: 2 | T7: 1 | U7: 4 | V7: 3 | W7: 5 | X7: 3 | Y7: 2 | Z7: 3 | AA7: 2 | AB7: 2 | AC7: 야간 19~07 | AD7: =SUM(AD10,AD13,AD16,AD19,AD22,AD25,AD28,AD31,AD34,AD37,AD40,AD43,AD46,AD49,AD52,AD55,AD58,AD61) -> 6,069 | AE7: =SUM(AE10,AE13,AE16,AE19,AE22,AE25,AE28,AE31,AE34,AE37,AE40,AE43,AE46,AE49,AE52,AE55,AE58,AE61) -> 6,257 | AF7: 188 | AG7: =AF7/AD7 -> 3%
A8: 1호 | B8: 36-02-01 (임포-죽포) 갓고을영농조합법인 앞 | C8: 소계 | D8: =SUM(E8:AB8) -> 978 | E8: =SUM(E9:E10) -> 372 | F8: 362 | G8: 16 | H8: 11 | I8: 96 | J8: 116 | K8: 1 | L8: 4 | M8: 0 | N8: =SUM(N9:N10) -> 0 | O8: 0 | P8: 0 | Q8: 0 | R8: 0 | S8: 0 | T8: 0 | U8: 0 | V8: 0 | W8: 0 | X8: 0 | Y8: 0 | Z8: 0 | AA8: 0 | AB8: 0 | AC8: 소계 | AD8: =SUM(AD9:AD10) -> 2,718 | AE8: =SUM(AE9:AE10) -> 2,391 | AF8: -327 | AG8: -12%
C9: 08~11 | D9: =SUM(E9:AB9) -> 411 | E9: 111 | F9: 177 | G9: 7 | H9: 7 | I9: 49 | J9: 57 | K9: 1 | L9: 2 | M9: 0 | N9: 0 | O9: 0 | P9: 0 | Q9: 0 | R9: 0 | S9: 0 | T9: 0 | U9: 0 | V9: 0 | W9: 0 | X9: 0 | Y9: 0 | Z9: 0 | AA9: 0 | AB9: 0 | AC9: 주간 07~19 | AD9: 2,239 | AE9: 2,009 | AF9: -230 | AG9: -10%
C10: 15~18 | D10: =SUM(E10:AB10) -> 567 | E10: 261 | F10: 185 | G10: 9 | H10: 4 | I10: 47 | J10: 59 | K10: 0 | L10: 2 | M10: 0 | N10: 0 | O10: 0 | P10: 0 | Q10: 0 | R10: 0 | S10: 0 | T10: 0 | U10: 0 | V10: 0 | W10: 0 | X10: 0 | Y10: 0 | Z10: 0 | AA10: 0 | AB10: 0 | AC10: 야간 19~07 | AD10: 479 | AE10: 382 | AF10: -97 | AG10: -20%
A11: 2호 | B11: 36-02-02 (신기⇔대율) 부영슈퍼 앞 | C11: 소계 | D11: =SUM(E11:AB11) -> 209 | E11: =SUM(E12:E13) -> 57 | F11: =SUM(F12:F13) -> 50 | G11: 8 | H11: 7 | I11: 44 | J11: 41 | K11: 1 | L11: 1 | M11: 0 | N11: 0 | O11: 0 | P11: 0 | Q11: 0 | R11: 0 | S11: 0 | T11: 0 | U11: 0 | V11: 0 | W11: 0 | X11: 0 | Y11: 0 | Z11: 0 | AA11: 0 | AB11: 0 | AC11: 소계 | AD11: =SUM(AD12:AD13) -> 547 | AE11: =SUM(AE12:AE13) -> 463 | AF11: -84 | AG11: -15%
C12: 08~11 | D12: =SUM(E12:AB12) -> 98 | E12: 26 | F12: 28 | G12: 4 | H12: 3 | I12: 18 | J12: 19 | K12: 0 | L12: 0 | M12: 0 | N12: 0 | O12: 0 | P12: 0 | Q12: 0 | R12: 0 | S12: 0 | T12: 0 | U12: 0 | V12: 0 | W12: 0 | X12: 0 | Y12: 0 | Z12: 0 | AA12: 0 | AB12: 0 | AC12: 주간 07~19 | AD12: 487 | AE12: 413 | AF12: -74 | AG12: -15%
C13: 15~18 | D13: =SUM(E13:AB13) -> 111 | E13: 31 | F13: 22 | G13: 4 | H13: 4 | I13: 26 | J13: 22 | K13: 1 | L13: 1 | M13: 0 | N13: 0 | O13: 0 | P13: 0 | Q13: 0 | R13: 0 | S13: 0 | T13: 0 | U13: 0 | V13: 0 | W13: 0 | X13: 0 | Y13: 0 | Z13: 0 | AA13: 0 | AB13: 0 | AC13: 야간 19~07 | AD13: 60 | AE13: 50 | AF13: -10 | AG13: -17%
A14: 4호 | B14: 36-02-03 (진두-하동) 나폴리팬션 앞 | C14: 소계 | D14: 791 | E14: =SUM(E15:E16) -> 410 | F14: =SUM(F15:F16) -> 238 | G14: 11 | H14: 5 | I14: 72 | J14: 50 | K14: 2 | L14: 3 | M14: 0 | N14: 0 | O14: 0 | P14: 0 | Q14: 0 | R14: 0 | S14: 0 | T14: 0 | U14: 0 | V14: 0 | W14: 0 | X14: 0 | Y14: 0 | Z14: 0 | AA14: 0 | AB14: 0 | AC14: 소계 | AD14: =SUM(AD15:AD16) -> 2,569 | AE14: =SUM(AE15:AE16) -> 2,242 | AF14: -327 | AG14: -13%
C15: 08~11 | D15: 368 | E15: 157 | F15: 116 | G15: 7 | H15: 2 | I15: 44 | J15: 38 | K15: 2 | L15: 2 | M15: 0 | N15: 0 | O15: 0 | P15: 0 | Q15: 0 | R15: 0 | S15: 0 | T15: 0 | U15: 0 | V15: 0 | W15: 0 | X15: 0 | Y15: 0 | Z15: 0 | AA15: 0 | AB15: 0 | AC15: 주간 07~19 | AD15: 1,649 | AE15: 1,482 | AF15: -167 | AG15: =AF15/AD15 -> -10%
C16: 15~18 | D16: 423 | E16: 253 | F16: 122 | G16: 4 | H16: 3 | I16: 28 | J16: 12 | K16: 0 | L16: 1 | M16: 0 | N16: 0 | O16: 0 | P16: 0 | Q16: 0 | R16: 0 | S16: 0 | T16: 0 | U16: 0 | V16: 0 | W16: 0 | X16: 0 | Y16: 0 | Z16: 0 | AA16: 0 | AB16: 0 | AC16: 야간 19~07 | AD16: 920 | AE16: 760 | AF16: -160 | AG16: -17%
A17: 5호 | B17: 36-02-04 (송시-도실) 돌산마트 앞 | C17: 소계 | D17: 1,828 | E17: =SUM(E18:E19) -> 446 | F17: =SUM(F18:F19) -> 673 | G17: 17 | H17: 11 | I17: 244 | J17: 315 | K17: 40 | L17: 15 | M17: 24 | N17: 5 | O17: 10 | P17: 8 | Q17: 2 | R17: 2 | S17: 3 | T17: 2 | U17: 2 | V17: 2 | W17: 3 | X17: 2 | Y17: 2 | Z17: 0 | AA17: 0 | AB17: 0 | AC17: 소계 | AD17: =SUM(AD18:AD19) -> 4,131 | AE17: =SUM(AE18:AE19) -> 3,085 | AF17: -1,046 | AG17: -25%
C18: 08~11 | D18: 942 | E18: 245 | F18: 385 | G18: 6 | H18: 4 | I18: 110 | J18: 125 | K18: 22 | L18: 9 | M18: 15 | N18: 1 | O18: 6 | P18: 5 | Q18: 1 | R18: 1 | S18: 1 | T18: 1 | U18: 1 | V18: 1 | W18: 1 | X18: 1 | Y18: 1 | Z18: 0 | AA18: 0 | AB18: 0 | AC18: 주간 07~19 | AD18: 3,256 | AE18: 1,919 | AF18: -1,337 | AG18: -41%
C19: 15~18 | D19: 886 | E19: 201 | F19: 288 | G19: 11 | H19: 7 | I19: 134 | J19: 190 | K19: 18 | L19: 6 | M19: 9 | N19: 4 | O19: 4 | P19: 3 | Q19: 1 | R19: 1 | S19: 2 | T19: 1 | U19: 1 | V19: 1 | W19: 2 | X19: 1 | Y19: 1 | Z19: 0 | AA19: 0 | AB19: 0 | AC19: 야간 19~07 | AD19: 875 | AE19: 1,166 | AF19: 291 | AG19: 33%
A20: 7호 | B20: 36-02-05 (둔전-굴전) 해오름팬션 앞 | C20: 소계 | D20: 465 | E20: =SUM(E21:E22) -> 70 | F20: =SUM(F21:F22) -> 107 | G20: 52 | H20: 75 | I20: 79 | J20: 82 | K20: 0 | L20: 0 | M20: 0 | N20: 0 | O20: 0 | P20: 0 | Q20: 0 | R20: 0 | S20: 0 | T20: 0 | U20: 0 | V20: 0 | W20: 0 | X20: 0 | Y20: 0 | Z20: 0 | AA20: 0 | AB20: 0 | AC20: 소계 | AD20: =SUM(AD21:AD22) -> 1,077 | AE20: =SUM(AE21:AE22) -> 1,036 | AF20: =AE20-AD20 -> -41 | AG20: =AF20/AD20 -> -4%
C21: 08~11 | D21: 211 | E21: 25 | F21: 55 | G21: 23 | H21: 28 | I21: 38 | J21: 42 | K21: 0 | L21: 0 | M21: 0 | N21: 0 | O21: 0 | P21: 0 | Q21: 0 | R21: 0 | S21: 0 | T21: 0 | U21: 0 | V21: 0 | W21: 0 | X21: 0 | Y21: 0 | Z21: 0 | AA21: 0 | AB21: 0 | AC21: 주간 07~19 | AD21: 917 | AE21: 889 | AF21: -28 | AG21: -3%
C22: 15~18 | D22: 254 | E22: 45 | F22: 52 | G22: 29 | H22: 47 | I22: 41 | J22: 40 | K22: 0 | L22: 0 | M22: 0 | N22: 0 | O22: 0 | P22: 0 | Q22: 0 | R22: 0 | S22: 0 | T22: 0 | U22: 0 | V22: 0 | W22: 0 | X22: 0 | Y22: 0 | Z22: 0 | AA22: 0 | AB22: 0 | AC22: 야간 19~07 | AD22: 160 | AE22: 147 | AF22: -13 | AG22: -8%
A23: 8호 | B23: 36-02-06 (풍류-내기) 유로조경 앞 | C23: 소계 | D23: 1,259 | E23: =SUM(E24:E25) -> 478 | F23: =SUM(F24:F25) -> 386 | G23: 9 | H23: 7 | I23: 152 | J23: 155 | K23: 15 | L23: 11 | M23: 17 | N23: 16 | O23: 4 | P23: 3 | Q23: 0 | R23: 0 | S23: 0 | T23: 0 | U23: 0 | V23: 0 | W23: 1 | X23: 0 | Y23: 1 | Z23: 3 | AA23: 1 | AB23: 0 | AC23: 소계 | AD23: =SUM(AD24:AD25) -> 2,342 | AE23: =SUM(AE24:AE25) -> 2,436 | AF23: 94 | AG23: 4%
C24: 08~11 | D24: 606 | E24: 219 | F24: 182 | G24: 5 | H24: 4 | I24: 81 | J24: 67 | K24: 14 | L24: 8 | M24: 11 | N24: 9 | O24: 3 | P24: 1 | Q24: 0 | R24: 0 | S24: 0 | T24: 0 | U24: 0 | V24: 0 | W24: 1 | X24: 0 | Y24: 0 | Z24: 0 | AA24: 1 | AB24: 0 | AC24: 주간 07~19 | AD24: 2,111 | AE24: 2,140 | AF24: 29 | AG24: 1%
C25: 15~18 | D25: 653 | E25: 259 | F25: 204 | G25: 4 | H25: 3 | I25: 71 | J25: 88 | K25: 1 | L25: 3 | M25: 6 | N25: 7 | O25: 1 | P25: 2 | Q25: 0 | R25: 0 | S25: 0 | T25: 0 | U25: 0 | V25: 0 | W25: 0 | X25: 0 | Y25: 1 | Z25: 3 | AA25: 0 | AB25: 0 | AC25: 야간 19~07 | AD25: 231 | AE25: 296 | AF25: 65 | AG25: 28%
A26: 10호 | B26: 36-02-07 (달천-대포) 방앗간가든 앞 | C26: 소계 | D26: 672 | E26: =SUM(E27:E28) -> 186 | F26: =SUM(F27:F28) -> 169 | G26: 6 | H26: 8 | I26: 75 | J26: 86 | K26: 34 | L26: 33 | M26: 24 | N26: 19 | O26: 6 | P26: 13 | Q26: 1 | R26: 2 | S26: 0 | T26: 0 | U26: 3 | V26: 2 | W26: 1 | X26: 4 | Y26: 0 | Z26: 0 | AA26: 0 | AB26: 0 | AC26: 소계 | AD26: =SUM(AD27:AD28) -> 1,261 | AE26: =SUM(AE27:AE28) -> 1,264 | AF26: 3 | AG26: 0%
C27: 08~11 | D27: 370 | E27: 97 | F27: 93 | G27: 3 | H27: 4 | I27: 39 | J27: 47 | K27: 26 | L27: 21 | M27: 15 | N27: 11 | O27: 4 | P27: 4 | Q27: 1 | R27: 2 | S27: 0 | T27: 0 | U27: 0 | V27: 0 | W27: 1 | X27: 2 | Y27: 0 | Z27: 0 | AA27: 0 | AB27: 0 | AC27: 주간 07~19 | AD27: 1,114 | AE27: 1,089 | AF27: -25 | AG27: -2%
C28: 15~18 | D28: 302 | E28: 89 | F28: 76 | G28: 3 | H28: 4 | I28: 36 | J28: 39 | K28: 8 | L28: 12 | M28: 9 | N28: 8 | O28: 2 | P28: 9 | Q28: 0 | R28: 0 | S28: 0 | T28: 0 | U28: 3 | V28: 2 | W28: 0 | X28: 2 | Y28: 0 | Z28: 0 | AA28: 0 | AB28: 0 | AC28: 야간 19~07 | AD28: 147 | AE28: 175 | AF28: 28 | AG28: 19%
A29: 11호 | B29: 36-02-08 (덕양-연화) 가나건축자재 앞 | C29: 소계 | D29: 797 | E29: =SUM(E30:E31) -> 255 | F29: =SUM(F30:F31) -> 168 | G29: 17 | H29: 10 | I29: 79 | J29: 40 | K29: 4 | L29: 4 | M29: 18 | N29: 8 | O29: 107 | P29: 78 | Q29: 1 | R29: 1 | S29: 0 | T29: 0 | U29: 0 | V29: 2 | W29: 1 | X29: 0 | Y29: 0 | Z29: 0 | AA29: 2 | AB29: 2 | AC29: 소계 | AD29: =SUM(AD30:AD31) -> 1,895 | AE29: =SUM(AE30:AE31) -> 1,939 | AF29: 44 | AG29: =AF29/AD29 -> 2%
C30: 08~11 | D30: 608 | E30: 197 | F30: 139 | G30: 15 | H30: 6 | I30: 66 | J30: 25 | K30: 2 | L30: 1 | M30: 12 | N30: 3 | O30: 78 | P30: 59 | Q30: 1 | R30: 1 | S30: 0 | T30: 0 | U30: 0 | V30: 2 | W30: 1 | X30: 0 | Y30: 0 | Z30: 0 | AA30: 0 | AB30: 0 | AC30: 주간 07~19 | AD30: 1,618 | AE30: 1,654 | AF30: 36 | AG30: =AF30/AD30 -> 2%
C31: 15~18 | D31: 189 | E31: 58 | F31: 29 | G31: 2 | H31: 4 | I31: 13 | J31: 15 | K31: 2 | L31: 3 | M31: 6 | N31: 5 | O31: 29 | P31: 19 | Q31: 0 | R31: 0 | S31: 0 | T31: 0 | U31: 0 | V31: 0 | W31: 0 | X31: 0 | Y31: 0 | Z31: 0 | AA31: 2 | AB31: 2 | AC31: 야간 19~07 | AD31: 277 | AE31: 285 | AF31: 8 | AG31: =AF31/AD31 -> 3%
A32: 12호 | B32: 36-02-09 (달천-신흥) 소라면 달천길 46 | C32: 소계 | D32: 469 | E32: =SUM(E33:E34) -> 170 | F32: =SUM(F33:F34) -> 158 | G32: 13 | H32: 13 | I32: 54 | J32: 57 | K32: 3 | L32: 1 | M32: 0 | N32: 0 | O32: 0 | P32: 0 | Q32: 0 | R32: 0 | S32: 0 | T32: 0 | U32: 0 | V32: 0 | W32: 0 | X32: 0 | Y32: 0 | Z32: 0 | AA32: 0 | AB32: 0 | AC32: 소계 | AD32: =SUM(AD33:AD34) -> 671 | AE32: =SUM(AE33:AE34) -> 667 | AF32: -4 | AG32: -1%
C33: 08~11 | D33: 230 | E33: 77 | F33: 85 | G33: 6 | H33: 7 | I33: 27 | J33: 25 | K33: 2 | L33: 1 | M33: 0 | N33: 0 | O33: 0 | P33: 0 | Q33: 0 | R33: 0 | S33: 0 | T33: 0 | U33: 0 | V33: 0 | W33: 0 | X33: 0 | Y33: 0 | Z33: 0 | AA33: 0 | AB33: 0 | AC33: 주간 07~19 | AD33: 566 | AE33: 529 | AF33: -37 | AG33: -7%
C34: 15~18 | D34: 239 | E34: 93 | F34: 73 | G34: 7 | H34: 6 | I34: 27 | J34: 32 | K34: 1 | L34: 0 | M34: 0 | N34: 0 | O34: 0 | P34: 0 | Q34: 0 | R34: 0 | S34: 0 | T34: 0 | U34: 0 | V34: 0 | W34: 0 | X34: 0 | Y34: 0 | Z34: 0 | AA34: 0 | AB34: 0 | AC34: 야간 19~07 | AD34: 105 | AE34: 138 | AF34: 33 | AG34: 31%
A35: 14호 | B35: 36-02-10 (신풍-애양) 구암리사무소 앞 | C35: 소계 | D35: 742 | E35: =SUM(E36:E37) -> 267 | F35: =SUM(F36:F37) -> 348 | G35: 14 | H35: 14 | I35: 43 | J35: 41 | K35: 3 | L35: 4 | M35: 4 | N35: 4 | O35: 0 | P35: 0 | Q35: 0 | R35: 0 | S35: 0 | T35: 0 | U35: 0 | V35: 0 | W35: 0 | X35: 0 | Y35: 0 | Z35: 0 | AA35: 0 | AB35: 0 | AC35: 소계 | AD35: =SUM(AD36:AD37) -> 1,343 | AE35: =SUM(AE36:AE37) -> 1,598 | AF35: 255 | AG35: 19%
C36: 08~11 | D36: 438 | E36: 117 | F36: 241 | G36: 8 | H36: 8 | I36: 30 | J36: 32 | K36: 2 | L36: 0 | M36: 0 | N36: 0 | O36: 0 | P36: 0 | Q36: 0 | R36: 0 | S36: 0 | T36: 0 | U36: 0 | V36: 0 | W36: 0 | X36: 0 | Y36: 0 | Z36: 0 | AA36: 0 | AB36: 0 | AC36: 주간 07~19 | AD36: 1,171 | AE36: 1,412 | AF36: 241 | AG36: 21%
C37: 15~18 | D37: 304 | E37: 150 | F37: 107 | G37: 6 | H37: 6 | I37: 13 | J37: 9 | K37: 1 | L37: 4 | M37: 4 | N37: 4 | O37: 0 | P37: 0 | Q37: 0 | R37: 0 | S37: 0 | T37: 0 | U37: 0 | V37: 0 | W37: 0 | X37: 0 | Y37: 0 | Z37: 0 | AA37: 0 | AB37: 0 | AC37: 야간 19~07 | AD37: 172 | AE37: 186 | AF37: 14 | AG37: 8%
A38: 15호 | B38: 36-02-11 (조화-연화) 하나로마트 앞 | C38: 소계 | D38: 1,025 | E38: =SUM(E39:E40) -> 369 | F38: =SUM(F39:F40) -> 310 | G38: 22 | H38: 23 | I38: 133 | J38: 121 | K38: 15 | L38: 7 | M38: 4 | N38: 8 | O38: 5 | P38: 0 | Q38: 3 | R38: 1 | S38: 3 | T38: 1 | U38: 0 | V38: 0 | W38: 0 | X38: 0 | Y38: 0 | Z38: 0 | AA38: 0 | AB38: 0 | AC38: 소계 | AD38: =SUM(AD39:AD40) -> 2,427 | AE38: =SUM(AE39:AE40) -> 2,303 | AF38: -124 | AG38: =AF38/AD38 -> -5%
C39: 08~11 | D39: 550 | E39: 201 | F39: 140 | G39: 12 | H39: 10 | I39: 78 | J39: 74 | K39: 7 | L39: 7 | M39: 3 | N39: 8 | O39: 2 | P39: 0 | Q39: 3 | R39: 1 | S39: 3 | T39: 1 | AA39: 0 | AB39: 0 | AC39: 주간 07~19 | AD39: 2,155 | AE39: 2,031 | AF39: -124 | AG39: =AF39/AD39 -> -6%
C40: 15~18 | D40: 475 | E40: 168 | F40: 170 | G40: 10 | H40: 13 | I40: 55 | J40: 47 | K40: 8 | L40: 0 | M40: 1 | N40: 0 | O40: 3 | P40: 0 | Q40: 0 | R40: 0 | S40: 0 | T40: 0 | AA40: 0 | AB40: 0 | AC40: 야간 19~07 | AD40: 272 | AE40: 272 | AF40: 0 | AG40: 0%
A41: 16호 | B41: 36-02-12 (상봉-여흥) 월산리사무소 앞 | C41: 소계 | D41: 1,726 | E41: =SUM(E42:E43) -> 504 | F41: =SUM(F42:F43) -> 410 | G41: 14 | H41: 11 | I41: 337 | J41: 296 | K41: 40 | L41: 27 | M41: 15 | N41: 5 | O41: 20 | P41: 7 | Q41: 2 | R41: 1 | S41: 12 | T41: 6 | U41: 0 | V41: 0 | W41: 15 | X41: 4 | Y41: 0 | Z41: 0 | AA41: 0 | AB41: 0 | AC41: 소계 | AD41: =SUM(AD42:AD43) -> 3,519 | AE41: =SUM(AE42:AE43) -> 3,917 | AF41: 398 | AG41: 11%
C42: 08~11 | D42: 1,138 | E42: 316 | F42: 285 | G42: 9 | H42: 7 | I42: 202 | J42: 185 | K42: 33 | L42: 25 | M42: 15 | N42: 5 | O42: 16 | P42: 6 | Q42: 0 | R42: 0 | S42: 12 | T42: 6 | U42: 0 | V42: 0 | W42: 12 | X42: 4 | Y42: 0 | Z42: 0 | AA42: 0 | AB42: 0 | AC42: 주간 07~19 | AD42: 2,955 | AE42: 3,299 | AF42: 344 | AG42: 12%
C43: 15~18 | D43: 588 | E43: 188 | F43: 125 | G43: 5 | H43: 4 | I43: 135 | J43: 111 | K43: 7 | L43: 2 | M43: 0 | N43: 0 | O43: 4 | P43: 1 | Q43: 2 | R43: 1 | S43: 0 | T43: 0 | U43: 0 | V43: 0 | W43: 3 | X43: 0 | Y43: 0 | Z43: 0 | AA43: 0 | AB43: 0 | AC43: 야간 19~07 | AD43: 564 | AE43: 618 | AF43: 54 | AG43: 10%
A44: 17호 | B44: 36-02-13 (나진-창무) 화양중 앞 | C44: 소계 | D44: 372 | E44: =SUM(E45:E46) -> 60 | F44: =SUM(F45:F46) -> 133 | G44: 16 | H44: 23 | I44: 38 | J44: 69 | K44: 3 | L44: 7 | M44: 5 | N44: 13 | O44: 2 | P44: 3 | Q44: 0 | R44: 0 | S44: 0 | T44: 0 | U44: 0 | V44: 0 | W44: 0 | X44: 0 | Y44: 0 | Z44: 0 | AA44: 0 | AB44: 0 | AC44: 소계 | AD44: =SUM(AD45:AD46) -> 935 | AE44: =SUM(AE45:AE46) -> 788 | AF44: -147 | AG44: -16%
C45: 08~11 | D45: 248 | E45: 34 | F45: 98 | G45: 8 | H45: 18 | I45: 21 | J45: 44 | K45: 2 | L45: 5 | M45: 3 | N45: 12 | O45: 1 | P45: 2 | Q45: 0 | R45: 0 | S45: 0 | T45: 0 | U45: 0 | V45: 0 | W45: 0 | X45: 0 | Y45: 0 | Z45: 0 | AA45: 0 | AB45: 0 | AC45: 주간 07~19 | AD45: 849 | AE45: 591 | AF45: -258 | AG45: -30%
C46: 15~18 | D46: 124 | E46: 26 | F46: 35 | G46: 8 | H46: 5 | I46: 17 | J46: 25 | K46: 1 | L46: 2 | M46: 2 | N46: 1 | O46: 1 | P46: 1 | Q46: 0 | R46: 0 | S46: 0 | T46: 0 | U46: 0 | V46: 0 | W46: 0 | X46: 0 | Y46: 0 | Z46: 0 | AA46: 0 | AB46: 0 | AC46: 야간 19~07 | AD46: 86 | AE46: 197 | AF46: 111 | AG46: 129%
A47: 18호 | B47: 36-02-14 (용주-소호) 금호어울림 앞 | C47: 소계 | D47: 3,052 | E47: =SUM(E48:E49) -> 1,357 | F47: =SUM(F48:F49) -> 1,246 | G47: 48 | H47: 46 | I47: 166 | J47: 170 | K47: 5 | L47: 6 | M47: 1 | N47: 1 | O47: 1 | P47: 5 | Q47: 0 | R47: 0 | S47: 0 | T47: 0 | U47: 0 | V47: 0 | W47: 0 | X47: 0 | Y47: 0 | Z47: 0 | AA47: 0 | AB47: 0 | AC47: 소계 | AD47: =SUM(AD48:AD49) -> 6,508 | AE47: =SUM(AE48:AE49) -> 6,816 | AF47: 308 | AG47: 5%
C48: 08~11 | D48: =SUM(E48:AB48) -> 1,592 | E48: 833 | F48: 527 | G48: 24 | H48: 27 | I48: 107 | J48: 63 | K48: 2 | L48: 2 | M48: 1 | N48: 1 | O48: 1 | P48: 4 | Q48: 0 | R48: 0 | S48: 0 | T48: 0 | U48: 0 | V48: 0 | W48: 0 | X48: 0 | Y48: 0 | Z48: 0 | AA48: 0 | AB48: 0 | AC48: 주간 07~19 | AD48: 5,087 | AE48: 5,491 | AF48: 404 | AG48: 8%
C49: 15~18 | D49: 1,460 | E49: 524 | F49: 719 | G49: 24 | H49: 19 | I49: 59 | J49: 107 | K49: 3 | L49: 4 | M49: 0 | N49: 0 | O49: 0 | P49: 1 | Q49: 0 | R49: 0 | S49: 0 | T49: 0 | U49: 0 | V49: 0 | W49: 0 | X49: 0 | Y49: 0 | Z49: 0 | AA49: 0 | AB49: 0 | AC49: 야간 19~07 | AD49: 1,421 | AE49: 1,325 | AF49: -96 | AG49: -7%
A50: 21호 | B50: 36-02-15 (세포-서촌) 산전교회 인근 | C50: 소계 | D50: 145 | E50: =SUM(E51:E52) -> 71 | F50: =SUM(F51:F52) -> 42 | G50: 7 | H50: 5 | I50: 19 | J50: 1 | K50: 0 | L50: 0 | M50: 0 | N50: 0 | O50: 0 | P50: 0 | Q50: 0 | R50: 0 | S50: 0 | T50: 0 | U50: 0 | V50: 0 | W50: 0 | X50: 0 | Y50: 0 | Z50: 0 | AA50: 0 | AB50: 0 | AC50: 소계 | AD50: =SUM(AD51:AD52) -> 231 | AE50: =SUM(AE51:AE52) -> 296 | AF50: 65 | AG50: 28%
C51: 08~11 | D51: 72 | E51: 36 | F51: 15 | G51: 5 | H51: 3 | I51: 13 | J51: 0 | AC51: 주간 07~19 | AD51: 218 | AE51: 255 | AF51: 37 | AG51: 17%
C52: 15~18 | D52: 73 | E52: 35 | F52: 27 | G52: 2 | H52: 2 | I52: 6 | J52: 1 | AC52: 야간 19~07 | AD52: 13 | AE52: 41 | AF52: 28 | AG52: 215%
A53: 20호 | B53: 36-02-16 (우학-송고) 우실경로당 앞 | C53: 소계 | D53: 190 | E53: =SUM(E54:E55) -> 38 | F53: =SUM(F54:F55) -> 72 | G53: 0 | H53: 0 | I53: 36 | J53: 16 | K53: 28 | L53: 0 | M53: 0 | N53: 0 | O53: 0 | P53: 0 | Q53: 0 | R53: 0 | S53: 0 | T53: 0 | U53: 0 | V53: 0 | W53: 0 | X53: 0 | Y53: 0 | Z53: 0 | AA53: 0 | AB53: 0 | AC53: 소계 | AD53: =SUM(AD54:AD55) -> 684 | AE53: =SUM(AE54:AE55) -> 572 | AF53: -112 | AG53: -16%
C54: 08~11 | D54: 92 | E54: 20 | F54: 29 | G54: 0 | H54: 0 | I54: 20 | J54: 8 | K54: 15 | L54: 0 | M54: 0 | N54: 0 | O54: 0 | P54: 0 | Q54: 0 | R54: 0 | S54: 0 | T54: 0 | U54: 0 | V54: 0 | W54: 0 | X54: 0 | Y54: 0 | Z54: 0 | AA54: 0 | AB54: 0 | AC54: 주간 07~19 | AD54: 592 | AE54: 503 | AF54: -89 | AG54: -15%
C55: 15~18 | D55: 98 | E55: 18 | F55: 43 | G55: 0 | H55: 0 | I55: 16 | J55: 8 | K55: 13 | L55: 0 | M55: 0 | N55: 0 | O55: 0 | P55: 0 | Q55: 0 | R55: 0 | S55: 0 | T55: 0 | U55: 0 | V55: 0 | W55: 0 | X55: 0 | Y55: 0 | Z55: 0 | AA55: 0 | AB55: 0 | AC55: 야간 19~07 | AD55: 92 | AE55: 69 | AF55: -23 | AG55: -25%
A56: 6호 | B56: 36-02-17 (호령-신흥) 개도주조장 옆 | C56: 소계 | D56: 258 | E56: =SUM(E57:E58) -> 53 | F56: =SUM(F57:F58) -> 57 | G56: 0 | H56: 0 | I56: 54 | J56: 67 | K56: 1 | L56: 5 | M56: 0 | N56: 6 | O56: 1 | P56: 14 | Q56: 0 | R56: 0 | S56: 0 | T56: 0 | U56: 0 | V56: 0 | W56: 0 | X56: 0 | Y56: 0 | Z56: 0 | AA56: 0 | AB56: 0 | AC56: 소계 | AD56: =SUM(AD57:AD58) -> 700 | AE56: =SUM(AE57:AE58) -> 711 | AF56: 11 | AG56: 2%
C57: 08~11 | D57: 122 | E57: 24 | F57: 26 | G57: 0 | H57: 0 | I57: 25 | J57: 31 | K57: 1 | L57: 3 | M57: 0 | N57: 3 | O57: 1 | P57: 8 | Q57: 0 | R57: 0 | S57: 0 | T57: 0 | U57: 0 | V57: 0 | W57: 0 | X57: 0 | Y57: 0 | Z57: 0 | AA57: 0 | AB57: 0 | AC57: 주간 07~19 | AD57: 557 | AE57: 591 | AF57: 34 | AG57: 6%
C58: 15~18 | D58: 136 | E58: 29 | F58: 31 | G58: 0 | H58: 0 | I58: 29 | J58: 36 | K58: 0 | L58: 2 | M58: 0 | N58: 3 | O58: 0 | P58: 6 | Q58: 0 | R58: 0 | S58: 0 | T58: 0 | U58: 0 | V58: 0 | W58: 0 | X58: 0 | Y58: 0 | Z58: 0 | AA58: 0 | AB58: 0 | AC58: 야간 19~07 | AD58: 143 | AE58: 120 | AF58: -23 | AG58: -16%
A59: 22호 | B59: 36-02-18 (거문-죽촌) 삼호교횟집 앞 | C59: 소계 | D59: 273 | E59: =SUM(E60:E61) -> 105 | F59: =SUM(F60:F61) -> 127 | G59: 7 | H59: 10 | I59: 12 | J59: 9 | K59: 2 | L59: 1 | M59: 0 | N59: 0 | O59: 0 | P59: 0 | Q59: 0 | R59: 0 | S59: 0 | T59: 0 | U59: 0 | V59: 0 | W59: 0 | X59: 0 | Y59: 0 | Z59: 0 | AA59: 0 | AB59: 0 | AC59: 소계 | AD59: =SUM(AD60:AD61) -> 557 | AE59: =SUM(AE60:AE61) -> 500 | AF59: -57 | AG59: -10%
C60: 08~11 | D60: 154 | E60: 57 | F60: 68 | G60: 6 | H60: 6 | I60: 8 | J60: 6 | K60: 2 | L60: 1 | M60: 0 | N60: 0 | O60: 0 | P60: 0 | Q60: 0 | R60: 0 | S60: 0 | T60: 0 | U60: 0 | V60: 0 | W60: 0 | X60: 0 | Y60: 0 | Z60: 0 | AA60: 0 | AB60: 0 | AC60: 주간 07~19 | AD60: 505 | AE60: 470 | AF60: -35 | AG60: -7%
C61: 15~18 | D61: 119 | E61: 48 | F61: 59 | G61: 1 | H61: 4 | I61: 4 | J61: 3 | K61: 0 | L61: 0 | M61: 0 | N61: 0 | O61: 0 | P61: 0 | Q61: 0 | R61: 0 | S61: 0 | T61: 0 | U61: 0 | V61: 0 | W61: 0 | X61: 0 | Y61: 0 | Z61: 0 | AA61: 0 | AB61: 0 | AC61: 야간 19~07 | AD61: 52 | AE61: 30 | AF61: -22 | AG61: -42%
